bitfinex/quotes_SOLUSD_20241125
["timestamp","ask_amount","ask_price","bid_price","bid_amount"]
[1732550735047,37.38914984,244.72,244.64,31.54482544]
[1732550735346,31.05684984,244.7,244.64,0.4879756]
[1732550735534,31.05684984,244.68,244.64,0.4879756]
[1732550736151,34.32644984,244.68,244.64,0.4879756]
[1732550736744,3.2696,244.68,244.64,0.4879756]
[1732550737241,34.32644984,244.68,244.64,0.4879756]
[1732550737443,31.05684984,244.66,244.64,0.4879756]
[1732550738117,34.32644984,244.68,244.64,0.4879756]
[1732550738321,3.2696,244.68,244.65,31.05684984]
[1732550738625,6.3323,244.72,244.67,31.05684984]
[1732550738835,40.75644984,244.8,244.72,23.776884]
[1732550739020,6.4317,244.8,244.77,31.05684984]
[1732550739216,6.4317,244.8,244.72,23.776884]
[1732550739845,6.4317,244.8,244.65,25.1352]
[1732550739846,6.4317,244.8,244.66,23.902374]
[1732550740048,6.4317,244.8,244.7,23.776884]
[1732550740235,31.05684984,244.78,244.7,54.83373384]
[1732550740621,6.4317,244.8,244.74,31.05684984]
[1732550740822,3.2673,244.85,244.78,31.05684984]
[1732550741124,31.05684984,244.8,244.73,31.05684984]
[1732550741441,31.05684984,244.82,244.74,23.776884]
[1732550741619,3.267,244.88,244.75,0.12549]
[1732550741821,6.4317,244.89,244.78,23.902374]
[1732550742023,6.4317,244.89,244.78,23.776884]
[1732550742231,9.6985,244.89,244.78,23.776884]
[1732550742445,6.4317,244.89,244.81,20.0]
[1732550742742,34.32254984,244.97,244.89,23.776884]
[1732550742950,37.10124984,245.03,244.95,31.05684984]
[1732550743125,34.32154984,245.05,244.97,31.05684984]
[1732550743442,31.05684984,245.01,244.93,31.05684984]
[1732550743631,31.05684984,244.99,244.89,31.05684984]
[1732550743830,31.05684984,244.97,244.87,31.05684984]
[1732550744030,31.05684984,244.93,244.85,31.05684984]
[1732550744246,34.32314984,244.93,244.83,31.05684984]
[1732550744417,34.32314984,244.93,244.85,31.05684984]
[1732550744923,34.32224984,244.99,244.91,31.05684984]
[1732550745122,31.05684984,244.99,244.91,31.05684984]
[1732550745323,31.05684984,244.95,244.85,31.05684984]
[1732550745539,31.05684984,244.95,244.88,20.0]
[1732550745854,31.05684984,244.93,244.85,20.0]
[1732550746140,31.05684984,244.93,244.85,31.05684984]
[1732550746340,34.32304984,244.93,244.83,31.05684984]
[1732550746541,34.32304984,244.93,244.85,31.05684984]
[1732550746727,3.2662,244.93,244.85,31.05684984]
[1732550746928,3.2658,244.96,244.89,31.05684984]
[1732550747127,31.05684984,244.95,244.87,31.05684984]
[1732550747655,3.2658,244.96,244.89,31.05684984]
[1732550747831,3.2658,244.96,244.87,31.05684984]
[1732550748145,0.12549,244.92,244.85,31.05684984]
[1732550748347,0.12549,244.92,244.83,31.05684984]
[1732550749056,0.12549,244.9,244.81,31.05684984]
[1732550749369,0.12549,244.9,244.68,31.05684984]
[1732550749370,20.0,244.86,244.79,31.05684984]
[1732550749659,31.05684984,244.87,244.79,31.05684984]
[1732550750038,3.2671,244.86,244.79,31.05684984]
[1732550750661,31.18233984,244.85,244.77,31.05684984]
[1732550750835,0.12549,244.85,244.65,16.4349]
[1732550751155,0.12549,244.85,244.78,31.05684984]
[1732550751458,3.2671,244.86,244.78,31.05684984]
[1732550752234,3.267,244.88,244.82,31.05684984]
[1732550752563,31.05684984,244.87,244.78,31.05684984]
[1732550752756,0.12549,244.86,244.78,31.05684984]
[1732550752945,31.05684984,244.81,244.72,31.05684984]
[1732550753153,10.0,244.86,244.68,31.05684984]
[1732550753154,0.12549,244.76,244.68,31.05684984]
[1732550753536,31.05684984,244.75,244.66,31.05684984]
[1732550753737,31.05684984,244.75,244.68,31.05684984]
[1732550754035,3.2687,244.74,244.7,31.05684984]
[1732550754239,3.2687,244.74,244.72,31.05684984]
[1732550754456,3.2687,244.74,244.7,31.05684984]
[1732550754752,3.2687,244.74,244.68,31.05684984]
[1732550754954,9.7394,244.76,244.7,31.05684984]
[1732550755182,6.4709,244.76,244.72,31.05684984]
[1732550755359,39.22574984,244.83,244.74,31.05684984]
[1732550755536,31.05684984,244.79,244.7,31.05684984]
[1732550755940,31.05684984,244.79,244.72,31.05684984]
[1732550756136,31.05684984,244.75,244.68,31.05684984]
[1732550756355,31.05684984,244.77,244.68,31.05684984]
[1732550756563,31.05684984,244.77,244.64,0.4879756]
[1732550756773,3.2681,244.79,244.72,31.05684984]
[1732550757073,3.2681,244.79,244.74,31.05684984]
[1732550757274,37.30204984,244.85,244.76,31.05684984]
[1732550757453,34.32444984,244.83,244.76,31.05684984]
[1732550757954,34.32444984,244.83,244.74,31.05684984]
[1732550758357,31.05684984,244.81,244.74,31.05684984]
[1732550758684,31.05684984,244.81,244.72,31.05684984]
[1732550758976,34.32444984,244.83,244.74,31.05684984]
[1732550759179,3.2676,244.83,244.76,31.05684984]
[1732550759356,34.32444984,244.83,244.76,31.05684984]
[1732550760260,31.05684984,244.81,244.72,31.05684984]
[1732550760661,31.05684984,244.79,244.7,31.05684984]
[1732550760854,31.05684984,244.79,244.64,4.5755756]
[1732550760855,31.05684984,244.79,244.72,31.05684984]
[1732550761256,31.05684984,244.79,244.7,31.05684984]
[1732550761560,31.05684984,244.81,244.72,31.05684984]
[1732550761754,31.05684984,244.79,244.72,31.05684984]
[1732550761966,31.05684984,244.75,244.68,31.05684984]
[1732550762167,31.05684984,244.77,244.68,31.05684984]
[1732550762873,3.2682,244.78,244.72,31.05684984]
[1732550763076,3.2682,244.78,244.7,31.05684984]
[1732550763387,31.05684984,244.77,244.7,31.05684984]
[1732550763675,3.2682,244.78,244.7,31.05684984]
[1732550763876,31.05684984,244.77,244.7,31.05684984]
[1732550764078,31.05684984,244.77,244.68,31.05684984]
[1732550764276,31.05684984,244.73,244.64,0.4879756]
[1732550764488,31.05684984,244.73,244.64,31.54482544]
[1732550764659,31.05684984,244.69,244.64,0.4879756]
[1732550764854,10.12549,244.77,244.65,31.05684984]
[1732550764855,31.05684984,244.71,244.65,31.05684984]
[1732550765073,31.05684984,244.73,244.64,4.5754756]
[1732550765273,31.05684984,244.69,244.64,0.4879756]
[1732550765475,31.05684984,244.67,244.64,0.4879756]
[1732550765678,31.05684984,244.65,244.64,0.4879756]
[1732550765980,34.32674984,244.65,244.64,0.4879756]
[1732550766556,34.45223984,244.65,244.64,0.4879756]
[1732550766879,34.32674984,244.65,244.64,0.4879756]
[1732550767577,3.2699,244.65,244.64,0.4879756]
[1732550768961,31.05684984,244.73,244.64,0.4879756]
[1732550769265,9.6691,244.9,244.72,31.05684984]
[1732550769578,9.6691,244.9,244.79,31.05684984]
[1732550769883,9.6691,244.9,244.78,31.05684984]
[1732550769884,31.05684984,244.87,244.78,31.05684984]
[1732550770090,31.05684984,244.86,244.78,20.0]
[1732550770260,6.4025,244.9,244.84,31.05684984]
[1732550770661,3.2654,244.99,244.89,23.776884]
[1732550770962,3.2654,244.99,244.87,31.05684984]
[1732550771176,31.05684984,244.91,244.85,20.0]
[1732550771486,11.4289,244.99,244.85,20.0]
[1732550771665,31.05684984,244.91,244.85,20.0]
[1732550771872,31.05684984,244.97,244.89,31.05684984]
[1732550772187,0.12549,244.97,244.81,0.12549]
[1732550772360,31.05684984,244.9,244.82,31.05684984]
[1732550772687,31.05684984,244.94,244.86,31.05684984]
[1732550772859,31.05684984,244.96,244.88,31.05684984]
[1732550773058,31.05684984,244.92,244.84,31.05684984]
[1732550773260,31.05684984,244.92,244.85,20.0]
[1732550773985,34.32304984,244.94,244.87,0.12549]
[1732550774159,34.32304984,244.94,244.86,54.83373384]
[1732550774362,31.05684984,244.92,244.84,31.05684984]
[1732550774586,3.2662,244.94,244.82,31.05684984]
[1732550774587,31.05684984,244.9,244.82,31.05684984]
[1732550774766,31.05684984,244.92,244.84,31.05684984]
[1732550775763,31.05684984,244.96,244.88,31.05684984]
[1732550775968,3.2659,244.96,244.9,31.05684984]
[1732550776168,3.2659,244.96,244.88,31.05684984]
[1732550776382,31.05684984,245.05,244.95,23.776884]
[1732550776582,0.12549,245.08,244.89,20.0]
[1732550776789,31.05684984,244.97,244.88,31.05684984]
[1732550776963,31.05684984,244.95,244.87,23.902374]
[1732550777170,10.0,245.07,244.86,47.60704984]
[1732550777171,31.05684984,244.93,244.86,16.5502]
[1732550777489,31.05684984,244.91,244.85,31.05684984]
[1732550777664,31.05684984,244.93,244.85,31.05684984]
[1732550777868,31.05684984,244.91,244.83,31.05684984]
[1732550778061,31.05684984,244.89,244.8,31.05684984]
[1732550778257,3.2666,244.9,244.83,31.05684984]
[1732550778470,8.1655,244.94,244.75,30.1575]
[1732550778471,3.2661,244.94,244.87,31.05684984]
[1732550778676,3.2661,244.94,244.8,31.05684984]
[1732550778677,3.2658,244.97,244.91,31.05684984]
[1732550779086,3.2658,244.97,244.89,31.05684984]
[1732550779291,34.32264984,244.97,244.89,31.05684984]
[1732550779588,34.32264984,244.97,244.84,0.12549]
[1732550779589,34.32264984,244.97,244.87,31.05684984]
[1732550779779,31.05684984,244.95,244.86,23.776884]
[1732550779985,31.05684984,244.91,244.83,31.05684984]
[1732550780162,3.2663,244.92,244.85,31.05684984]
[1732550780368,3.2663,244.92,244.85,19.22043086]
[1732550781181,19.22043086,244.91,244.76,10.0]
[1732550781372,19.22043086,244.91,244.83,19.22043086]
[1732550781576,19.22043086,244.89,244.81,19.22043086]
[1732550781777,11.4322,244.92,244.77,19.22043086]
[1732550781778,19.22043086,244.85,244.77,19.22043086]
[1732550782089,6.1294,244.88,244.66,38.10722218]
[1732550782090,19.22043086,244.79,244.71,19.22043086]
[1732550782266,31.26877343,244.79,244.71,31.26877343]
[1732550782463,11.4345,244.87,244.76,31.26877343]
[1732550782668,31.26877343,244.86,244.78,31.26877343]
[1732550782872,3.267,244.87,244.82,31.26877343]
[1732550783070,3.267,244.87,244.8,31.26877343]
[1732550783572,3.2663,244.93,244.86,31.26877343]
[1732550783768,31.26877343,245.04,244.85,0.12549]
[1732550783769,3.2657,244.97,244.9,31.26877343]
[1732550784288,6.542,244.98,244.92,31.26877343]
[1732550784500,9.8076,244.98,244.66,20.6674227]
[1732550784800,9.8076,244.98,244.81,10.0]
[1732550785096,17.9715,244.98,244.79,4.0851]
[1732550785278,9.8076,244.98,244.82,0.12549]
[1732550785478,3.2656,244.98,244.92,31.26877343]
[1732550785871,34.53437343,244.98,244.9,31.26877343]
[1732550786272,31.26877343,244.96,244.85,0.12549]
[1732550786595,31.26877343,244.96,244.88,23.776884]
[1732550786768,3.2656,244.98,244.91,31.26877343]
[1732550787094,34.53407343,245.0,244.92,23.776884]
[1732550787498,31.26877343,244.93,244.78,25.2577]
[1732550787699,31.26877343,244.9,244.8,31.26877343]
[1732550788072,8.1673,244.88,244.69,15.1362]
[1732550788406,31.26877343,244.84,244.75,31.26877343]
[1732550788699,31.26877343,244.86,244.77,31.26877343]
[1732550788870,31.26877343,244.8,244.69,15.1362]
[1732550789076,31.26877343,244.78,244.7,31.26877343]
[1732550789374,0.12549,244.85,244.64,31.75674903]
[1732550789375,31.26877343,244.72,244.64,31.75674903]
[1732550789584,31.26877343,244.74,244.64,31.75674903]
[1732550789786,31.26877343,244.74,244.66,31.26877343]
[1732550790071,31.26877343,244.76,244.68,31.26877343]
[1732550790271,3.2686,244.75,244.68,31.26877343]
[1732550790578,3.2684,244.77,244.7,31.26877343]
[1732550791175,3.2684,244.77,244.64,4.5755756]
[1732550791176,31.26877343,244.72,244.65,31.26877343]
[1732550791499,31.26877343,244.72,244.64,0.4879756]
[1732550791677,31.26877343,244.74,244.65,31.26877343]
[1732550791871,31.26877343,244.76,244.67,31.26877343]
[1732550792194,34.53657343,244.81,244.71,31.26877343]
[1732550792498,31.26877343,244.89,244.79,31.26877343]
[1732550792720,6.0442,244.91,244.86,31.26877343]
[1732550792872,6.0442,244.91,244.8,31.26877343]
[1732550792873,3.2663,244.93,244.89,31.26877343]
[1732550793080,30.0,244.9,244.89,31.26877343]
[1732550793279,3.266,244.95,244.89,31.26877343]
[1732550793583,1.86324295,245.05,244.8,41.26877343]
[1732550793584,31.26877343,245.05,244.94,23.776884]
[1732550793883,31.26877343,245.01,244.92,31.26877343]
[1732550794090,11.4257,245.06,244.8,31.26877343]
[1732550794091,31.26877343,244.99,244.9,31.26877343]
[1732550794290,31.26877343,244.99,244.81,20.0]
[1732550794291,31.26877343,245.01,244.92,31.26877343]
[1732550794780,31.26877343,244.99,244.9,31.26877343]
[1732550795104,31.26877343,244.97,244.9,31.26877343]
[1732550795410,31.26877343,245.04,244.86,33.902374]
[1732550795582,3.2646,245.05,245.0,31.26877343]
[1732550795778,3.2646,245.05,244.89,53.776884]
[1732550795779,31.26877343,245.04,244.96,31.26877343]
[1732550796083,31.26877343,245.02,244.94,31.26877343]
[1732550796404,31.26877343,244.98,244.9,31.26877343]
[1732550796598,34.53417343,245.0,244.92,31.26877343]
[1732550796794,31.26877343,245.02,244.94,31.26877343]
[1732550796981,31.26877343,245.0,244.92,31.26877343]
[1732550797179,31.26877343,244.98,244.91,23.902374]
[1732550797377,31.26877343,245.02,244.94,31.26877343]
[1732550797605,31.26877343,245.0,244.93,23.776884]
[1732550797812,31.26877343,245.0,244.9,31.39426343]
[1732550798107,31.26877343,244.96,244.88,31.26877343]
[1732550798278,31.26877343,244.98,244.9,31.26877343]
[1732550798780,31.26877343,245.0,244.92,31.26877343]
[1732550798987,0.12549,245.03,244.88,31.26877343]
[1732550798988,31.26877343,244.96,244.88,31.26877343]
[1732550799177,31.26877343,245.0,244.92,31.26877343]
[1732550800004,34.53377343,245.02,244.94,31.26877343]
[1732550800304,31.26877343,244.98,244.9,31.26877343]
[1732550800480,31.26877343,244.96,244.88,31.26877343]
[1732550800687,31.26877343,244.94,244.86,55.04565743]
[1732550800889,31.26877343,244.88,244.77,4.0854]
[1732550801085,31.26877343,244.86,244.78,31.26877343]
[1732550801298,31.26877343,244.87,244.79,31.26877343]
[1732550801696,31.26877343,244.89,244.81,31.26877343]
[1732550801899,31.26877343,244.89,244.79,31.26877343]
[1732550802503,34.53557343,244.89,244.79,31.26877343]
[1732550802682,31.26877343,244.84,244.77,31.26877343]
[1732550802879,31.26877343,244.82,244.75,31.26877343]
[1732550803188,31.26877343,244.84,244.75,31.26877343]
[1732550803591,31.26877343,244.82,244.73,31.26877343]
[1732550804187,3.2678,244.81,244.73,31.26877343]
[1732550804400,31.26877343,244.86,244.77,31.26877343]
[1732550804783,31.26877343,244.84,244.75,31.26877343]
[1732550804990,31.26877343,244.86,244.78,31.26877343]
[1732550805185,31.26877343,244.84,244.76,31.26877343]
[1732550805781,31.26877343,244.86,244.78,31.26877343]
[1732550805988,6.1336,244.9,244.7,44.244264]
[1732550805989,31.26877343,244.88,244.8,31.26877343]
[1732550806318,31.26877343,244.86,244.78,31.26877343]
[1732550806490,31.26877343,244.88,244.8,31.26877343]
[1732550806687,31.26877343,244.94,244.86,31.26877343]
[1732550807593,34.53487343,244.94,244.86,31.26877343]
[1732550807793,31.26877343,244.92,244.84,31.26877343]
[1732550808098,31.26877343,244.96,244.88,31.26877343]
[1732550808414,31.26877343,244.94,244.86,31.26877343]
[1732550808586,31.26877343,244.92,244.84,31.26877343]
[1732550809097,31.26877343,244.9,244.82,31.26877343]
[1732550809302,31.26877343,244.92,244.84,31.26877343]
[1732550809814,3.2665,244.91,244.84,31.26877343]
[1732550810012,31.26877343,244.92,244.84,31.26877343]
[1732550810219,34.53507343,244.92,244.84,31.26877343]
[1732550810387,34.53507343,244.92,244.76,10.2136]
[1732550810388,31.26877343,244.9,244.82,31.26877343]
[1732550810810,34.53507343,244.92,244.84,31.26877343]
[1732550811513,31.26877343,244.9,244.82,31.26877343]
[1732550811691,31.26877343,244.88,244.8,31.26877343]
[1732550811897,31.26877343,244.86,244.78,31.26877343]
[1732550812103,0.12549,244.91,244.8,31.26877343]
[1732550812421,31.26877343,244.89,244.81,31.26877343]
[1732550812750,31.39426343,244.91,244.83,31.26877343]
[1732550812904,3.2663,244.92,244.85,31.26877343]
[1732550813096,31.26877343,244.91,244.83,31.26877343]
[1732550813489,31.26877343,244.91,244.68,33.16022402]
[1732550813490,31.26877343,244.85,244.67,4.0871]
[1732550813687,31.26877343,244.85,244.76,31.26877343]
[1732550813889,31.26877343,244.83,244.74,31.26877343]
[1732550814111,31.26877343,244.81,244.72,31.26877343]
[1732550814422,10.0,244.9,244.68,31.26877343]
[1732550814423,0.12549,244.76,244.68,31.26877343]
[1732550814589,19.24460644,244.75,244.68,19.24460644]
[1732550814785,19.24460644,244.79,244.7,19.24460644]
[1732550815011,19.24460644,244.77,244.7,19.24460644]
[1732550815389,3.2685,244.76,244.7,19.24460644]
[1732550815812,3.2685,244.76,244.68,19.24460644]
[1732550816017,19.24460644,244.69,244.64,0.4879756]
[1732550816219,19.24460644,244.71,244.64,0.4879756]
[1732550816400,31.29420537,244.7,244.64,0.4879756]
[1732550816614,31.29420537,244.72,244.64,31.78218097]
[1732550816818,11.4397,244.76,244.66,31.29420537]
[1732550816819,31.29420537,244.74,244.66,31.29420537]
[1732550817329,10.0,244.87,244.64,4.5754756]
[1732550817330,6.5548,244.87,244.73,31.29420537]
[1732550817629,31.29420537,244.84,244.76,31.29420537]
[1732550817802,31.29420537,244.84,244.77,23.776884]
[1732550818108,31.29420537,244.82,244.74,31.29420537]
[1732550818610,31.29420537,244.82,244.69,4.0868]
[1732550818611,31.29420537,244.8,244.72,31.29420537]
[1732550819404,3.2681,244.79,244.72,31.29420537]
[1732550819606,3.2681,244.79,244.66,10.0]
[1732550819607,31.29420537,244.78,244.7,31.29420537]
[1732550819802,31.29420537,244.75,244.67,31.29420537]
[1732550820007,31.29420537,244.73,244.65,31.29420537]
[1732550820325,31.29420537,244.73,244.64,0.4879756]
[1732550820326,31.29420537,244.69,244.64,0.4879756]
[1732550821026,31.29420537,244.65,244.64,0.4879756]
[1732550821318,10.0,244.76,244.64,0.4879756]
[1732550821319,31.29420537,244.67,244.64,0.4879756]
[1732550821523,34.56390537,244.67,244.64,0.4879756]
[1732550821704,31.29420537,244.65,244.64,0.4879756]
[1732550823423,34.56410537,244.65,244.64,0.4879756]
[1732550823723,34.68959537,244.65,244.64,0.4879756]
[1732550824232,34.56410537,244.65,244.64,0.4879756]
[1732550824909,34.68959537,244.65,244.64,0.4879756]
[1732550825108,34.81508537,244.65,244.64,0.4879756]
[1732550825510,34.81508537,244.65,244.46,15.5073]
[1732550825511,20.0,244.62,244.46,46.80150537]
[1732550825833,31.29420537,244.55,244.47,31.29420537]
[1732550826126,20.0,244.62,244.46,15.5073]
[1732550826127,31.29420537,244.56,244.48,31.29420537]
[1732550826307,31.29420537,244.56,244.46,19.5979]
[1732550826308,31.29420537,244.53,244.46,15.5073]
[1732550826714,31.29420537,244.55,244.47,31.29420537]
[1732550826917,20.0,244.62,244.46,15.5073]
[1732550826918,31.29420537,244.53,244.46,15.5073]
[1732550827127,31.29420537,244.48,244.4,4.0915]
[1732550827334,31.29420537,244.46,244.39,35.87388097]
[1732550827525,31.29420537,244.44,244.39,4.5796756]
[1732550827835,31.29420537,244.44,244.39,0.4879756]
[1732550828129,31.29420537,244.49,244.41,31.29420537]
[1732550828330,6.3261,244.53,244.39,4.5796756]
[1732550828331,31.29420537,244.47,244.39,31.78218097]
[1732550828716,31.29420537,244.44,244.39,0.4879756]
[1732550829030,31.29420537,244.46,244.39,0.4879756]
[1732550829237,31.29420537,244.45,244.39,0.4879756]
[1732550829404,34.56670537,244.46,244.39,31.78218097]
[1732550829730,31.29420537,244.46,244.39,31.78218097]
[1732550829937,31.29420537,244.49,244.42,31.29420537]
[1732550830105,31.29420537,244.5,244.44,0.12549]
[1732550830306,31.29420537,244.52,244.47,0.12549]
[1732550830507,6.3261,244.53,244.46,23.776884]
[1732550830508,31.29420537,244.48,244.46,23.776884]
[1732550830728,31.29420537,244.49,244.46,23.776884]
[1732550831029,31.29420537,244.49,244.42,23.902374]
[1732550831235,31.29420537,244.43,244.39,0.4879756]
[1732550831535,8.181,244.47,244.39,0.4879756]
[1732550831704,31.29420537,244.44,244.39,0.4879756]
[1732550831912,3.2718,244.51,244.39,0.4879756]
[1732550832131,3.2718,244.51,244.4,0.12549]
[1732550832429,20.0,244.5,244.39,0.4879756]
[1732550832737,30.0,244.49,244.39,0.4879756]
[1732550832910,20.0,244.49,244.39,0.4879756]
[1732550833112,31.29420537,244.44,244.39,0.4879756]
[1732550833636,31.29420537,244.46,244.39,0.4879756]
[1732550833814,31.29420537,244.46,244.4,0.12549]
[1732550834015,31.29420537,244.48,244.4,0.12549]
[1732550834331,31.29420537,244.46,244.4,0.12549]
[1732550834635,31.29420537,244.42,244.39,0.4879756]
[1732550835930,31.29420537,244.44,244.39,0.4879756]
[1732550836130,34.56700537,244.44,244.39,0.4879756]
[1732550836314,19.29225159,244.46,244.39,0.4879756]
[1732550836517,19.29225159,244.51,244.44,0.12549]
[1732550836721,19.29225159,244.49,244.44,0.12549]
[1732550836919,19.29225159,244.45,244.39,0.4879756]
[1732550837122,19.29225159,244.41,244.39,0.4879756]
[1732550837636,3.2733,244.4,244.39,0.4879756]
[1732550839546,10.0,244.49,244.39,0.4879756]
[1732550839547,19.29225159,244.43,244.39,0.4879756]
[1732550839840,22.56445159,244.48,244.42,0.12549]
[1732550840049,14.505,244.53,244.42,0.12549]
[1732550840050,19.29225159,244.5,244.44,0.12549]
[1732550840217,19.29225159,244.48,244.44,0.25098]
[1732550840536,19.29225159,244.5,244.44,0.25098]
[1732550840719,19.29225159,244.5,244.43,0.25098]
[1732550840923,19.29225159,244.48,244.43,0.25098]
[1732550841315,19.29225159,244.48,244.41,16.304]
[1732550841530,19.29225159,244.46,244.41,16.304]
[1732550841727,19.29225159,244.46,244.42,0.12549]
[1732550842016,19.29225159,244.5,244.42,19.41774159]
[1732550842212,22.56425159,244.5,244.42,19.41774159]
[1732550842413,22.56425159,244.5,244.44,0.12549]
[1732550842414,19.29225159,244.5,244.44,0.12549]
[1732550843023,19.29225159,244.48,244.43,0.25098]
[1732550843228,19.29225159,244.46,244.43,0.25098]
[1732550843434,19.29225159,244.44,244.42,0.12549]
[1732550843633,10.0,244.36,244.21,1.82825539]
[1732550843820,20.0,244.19,244.14,0.4879756]
[1732550844017,38.58450318,244.22,244.14,0.4879756]
[1732550844018,19.29225159,244.15,244.14,0.4879756]
[1732550845740,6.3572,244.01,243.97,1185.92012236]
[1732550845942,27.8528,244.14,243.97,1185.92012236]
[1732550845943,267.85421638,243.98,243.97,307.91382236]
[1732550846145,44.027864,243.91,243.9,7.56e-05]
[1732550846335,10.0,243.91,243.9,7.56e-05]
[1732550846545,2.89619022,243.94,243.9,7.56e-05]
[1732550846743,10.0,244.02,243.9,7.56e-05]
[1732550847044,10.0,244.02,243.68,10.0]
[1732550847045,10.0,243.78,243.51,4.1065]
[1732550847355,10.0,243.82,243.45,15.6351]
[1732550847356,10.0,243.73,243.45,15.6351]
[1732550847647,31.54214721,243.67,243.46,10.0]
[1732550847841,3.2832,243.66,243.46,14.1074]
[1732550848045,3.2832,243.66,243.45,25.6351]
[1732550848345,3.2832,243.66,243.48,31.54214721]
[1732550848545,3.2832,243.66,243.48,35.64904721]
[1732550848755,20.0,243.74,243.56,10.0]
[1732550849048,31.54214721,243.71,243.6,31.54214721]
[1732550849346,8.2026,243.83,243.58,10.0]
[1732550849347,31.54214721,243.73,243.66,0.12549]
[1732550849535,31.54214721,243.75,243.66,0.12549]
[1732550849850,31.54214721,243.75,243.67,0.12549]
[1732550850032,31.54214721,243.77,243.67,0.12549]
[1732550850235,31.54214721,243.79,243.69,0.12549]
[1732550850639,31.54214721,243.84,243.75,24.027864]
[1732550850954,31.54214721,243.8,243.75,24.027864]
[1732550851452,31.54214721,243.84,243.75,24.027864]
[1732550851633,31.54214721,243.86,243.77,23.902374]
[1732550851830,31.54214721,243.84,243.77,24.027864]
[1732550852032,31.54214721,243.78,243.65,0.2389556]
[1732550852255,10.0,243.72,243.44,10.0]
[1732550852455,0.12549,243.74,243.44,0.93892305]
[1732550852456,31.54214721,243.53,243.44,0.93892305]
[1732550852658,30.0,243.71,243.45,31.54214721]
[1732550852830,31.54214721,243.56,243.44,0.93892305]
[1732550853157,31.54214721,243.5,243.44,0.93892305]
[1732550853361,31.54214721,243.6,243.44,0.93892305]
[1732550853362,31.54214721,243.54,243.44,0.93892305]
[1732550853652,31.54214721,243.52,243.42,61.87984721]
[1732550853837,31.54214721,243.6,243.5,31.54214721]
[1732550854026,31.54214721,243.62,243.53,0.12549]
[1732550854237,31.54214721,243.64,243.51,10.0]
[1732550854569,31.54214721,243.72,243.58,31.54214721]
[1732550854761,3.2817,243.78,243.58,10.0]
[1732550855047,31.54214721,243.7,243.65,0.12549]
[1732550855260,31.54214721,243.68,243.65,0.12549]
[1732550855546,31.54214721,243.68,243.53,10.0]
[1732550855547,10.0,243.57,243.4,0.4879756]
[1732550855848,31.54214721,243.49,243.4,312.4879756]
[1732550856033,3.2831,243.67,243.4,0.4879756]
[1732550856034,20.0,243.58,243.4,0.4879756]
[1732550856227,31.54214721,243.44,243.4,0.4879756]
[1732550856633,31.54214721,243.48,243.4,0.4879756]
[1732550856830,31.54214721,243.5,243.41,0.12549]
[1732550857033,31.54214721,243.46,243.41,0.12549]
[1732550857239,31.54214721,243.48,243.41,0.12549]
[1732550857451,31.54214721,243.5,243.41,0.12549]
[1732550857954,31.54214721,243.48,243.43,0.12549]
[1732550858125,3.2842,243.59,243.43,0.12549]
[1732550858126,31.54214721,243.5,243.43,0.12549]
[1732550858328,31.54214721,243.5,243.4,0.4879756]
[1732550858329,31.54214721,243.44,243.4,0.4879756]
[1732550858754,31.54214721,243.44,243.41,0.12549]
[1732550858942,31.54214721,243.48,243.41,0.12549]
[1732550859167,31.54214721,243.5,243.41,10.12549]
[1732550859446,31.54214721,243.5,243.4,46.13842281]
[1732550859447,31.54214721,243.43,243.4,0.4879756]
[1732550859829,31.54214721,243.43,243.41,0.12549]
[1732550860153,31.54214721,243.43,243.4,0.4879756]
[1732550860535,31.54214721,243.47,243.4,4.5962756]
[1732550860732,31.54214721,243.52,243.41,31.54214721]
[1732550860930,31.54214721,243.52,243.43,31.54214721]
[1732550861127,31.54214721,243.56,243.48,0.12549]
[1732550861347,31.54214721,243.56,243.44,0.12549]
[1732550861348,31.54214721,243.58,243.49,31.54214721]
[1732550861748,31.54214721,243.58,243.5,24.027864]
[1732550862149,31.54214721,243.56,243.5,24.027864]
[1732550862339,3.2839,243.61,243.49,0.12549]
[1732550862340,31.54214721,243.52,243.49,0.12549]
[1732550862655,31.54214721,243.52,243.49,0.25098]
[1732550862835,31.54214721,243.5,243.49,0.12549]
[1732550863032,31.54214721,243.52,243.49,0.12549]
[1732550863231,31.54214721,243.52,243.44,0.12549]
[1732550863437,31.54214721,243.52,243.43,31.54214721]
[1732550863738,31.54214721,243.52,243.44,0.12549]
[1732550863953,31.54214721,243.54,243.46,0.12549]
[1732550864155,31.54214721,243.54,243.46,24.027864]
[1732550864369,31.54214721,243.5,243.46,0.12549]
[1732550864673,31.54214721,243.5,243.45,0.25098]
[1732550864845,31.54214721,243.52,243.45,0.25098]